Cogmind - Beta 16 @@@ ROGUE MODE // 2025.10.24 @ 21:11:49 Player: welikiq Result: Self-destructed Performance ------------- Evolutions (1) 500 Regions Visited (3) 600 Robots Destroyed (38) 190 Value Destroyed (630) 630 Prototype IDs (2) 40 Alien Tech Used (0) 0 Bonus (0) 0 TOTAL SCORE: 1960 Bonus ------- None Cogmind --------- Core Integrity 316/400 Matter 212/300 Energy 280/280 System Corruption 0% Temperature Cool (0) Movement Treading (145) Location -9/Materials Parts ------- > --- POWER (1) -------- Cooled Ion Engine > --- PROPULSION (2) --- Advanced Treads Advanced Treads > --- UTILITY (2) ------ Terrain Scan Processor Seismic Detector > --- WEAPON (4) ------- Particle Cannon Heavy Assault Rifle Heavy Assault Rifle Improved Light Cannon > --- INVENTORY (5) ---- Advanced Treads Advanced Treads Heat Sink Light Assault Rifle Datajack Peak State ------------ > --- POWER ------------ Cooled Ion Engine > --- PROPULSION ------- Advanced Treads Advanced Treads > --- UTILITY ---------- Terrain Scan Processor Seismic Detector > --- WEAPON ----------- Particle Cannon Heavy Assault Rifle Heavy Assault Rifle Improved Light Cannon > --- INVENTORY -------- Advanced Treads Advanced Treads Seismic Detector [Rating: 20] Favorites ----------- Power Ion Engine Engine Ion Engine Power Core Light Nuclear Core Propulsion Aluminum Leg Treads Advanced Treads Leg Aluminum Leg Utility Seismic Detector Device Seismic Detector Processor Terrain Scan Processor Weapon Grenade Launcher Energy Gun Medium Laser Energy Cannon Particle Cannon Ballistic Gun Heavy Assault Rifle Ballistic Cannon Improved Light Cannon Launcher Grenade Launcher Special Melee Weapon Datajack Build | -11 -10 -10 -9 ------- Run | Yrd Mat Min Mat Slots Evolved 2 | . . . 2 Power . | . . . . Propulsion . | . . . . Utility . | . . . . Weapon 2 | . . . 2 Parts Attached 21 | 7 . 4 10 Power 3 | 1 . 1 1 Engine 2 | 1 . . 1 Core 1 | . . 1 . Reactor . | . . . . Propulsion 4 | 2 . . 2 Treads 2 | . . . 2 Leg 2 | 2 . . . Wheel . | . . . . Hover . | . . . . Flight . | . . . . Utility 4 | 2 . . 2 Device 3 | 2 . . 1 Storage . | . . . . Processor 1 | . . . 1 Hackware . | . . . . Protection . | . . . . Artifact . | . . . . Weapon 10 | 2 . 3 5 Energy Gun 2 | 1 . 1 . Energy Cannon 1 | . . . 1 Ballistic Gun 3 | 1 . . 2 Ballistic Cannon 1 | . . . 1 Launcher 2 | . . 2 . Special Weapon . | . . . . Impact Weapon . | . . . . Slashing Weapon . | . . . . Piercing Weapon . | . . . . Special Melee Weapon 1 | . . . 1 Unidentified Prototypes 1 | . . . 1 Parts Lost 3 | . . 2 1 Power . | . . . . Propulsion . | . . . . Utility 1 | . . 1 . Weapon 2 | . . 1 1 Highest Loss Streak 2 | . . 2 1 To Critical Strikes . | . . . . Average Backups 2 | . 1 2 4 Power . | . . . . Propulsion . | . . . 1 Utility 1 | . 1 1 1 Weapon . | . . 1 . Tool/Special . | . . . . Unused Backups 4 | . . . 4 Power . | . . . . Propulsion 2 | . . . 2 Utility 1 | . . . 1 Weapon 1 | . . . 1 Tool/Special . | . . . . Average Slot Usage (%) 85 | . 96 83 85 Engine 12 | . 14 13 10 Treads 6 | . . . 16 Leg 10 | . 26 14 2 Device 20 | . 28 27 7 Processor 2 | . . . 5 Energy Gun 2 | . 14 . 4 Energy Cannon 2 | . . . 5 Ballistic Gun 6 | . 12 . 16 Ballistic Cannon 2 | . . . 5 Launcher 16 | . . 26 4 Special Melee Weapon 1 | . . . 4 Peak Build Rating 20 | 9 9 8 20 Average Rating 10 | 7 8 7 16 On Entrance 5 | . 9 7 7 Avg Prop Armor Cover (%) . | . . . . Naked Turns . | . . . . Heaviest Build 23 | 11 11 13 23 Greatest Support 44 | 20 20 10 44 Greatest Overweight (x) 1 | . . 1 1 Average Overweight (x) . | . . . . Largest Inventory Capacity 5 | 5 5 5 5 Average Capacity 5 | 5 5 5 5 Most Carried 5 | 1 2 3 5 Average Carried 2 | . 1 2 4 Final Capacity 5 | 5 5 5 5 Final Carried 5 | 1 2 3 5 Class Distribution -------------------- 71% | Mutant 19% | Gunner 8% | Bomber Dominant Class ---------------- Mutant | -10/Materials Mutant | -10/Mines Gunner | -9/Materials Resources | -11 -10 -10 -9 ----------- Run | Yrd Mat Min Mat Matter Collected 923 | 327 . 158 438 Remotely . | . . . . Salvage Created 998 | 273 . 194 531 Parts 70 | 20 . 23 27 Haulers Intercepted 1 | . . . 1 Recyclers Shooed 1 | 1 . . . Parts Field Recycled . | . . . . Retrieved Matter . | . . . . Parts Self-Destructed . | . . . . Prevented . | . . . . Parts Restored . | . . . . Kills | -11 -10 -10 -9 ------- Run | Yrd Mat Min Mat Combat Hostiles Destroyed 20 | . . 10 10 Melee 1 | . . . 1 Guns 5 | . . . 5 Cannons 4 | . . . 4 AOE 10 | . . 10 . Classes Destroyed 9 | 3 . 3 3 Worker 3 | 2 . 1 . Builder 2 | . . 2 . Tunneler 7 | 6 . 1 . Hauler 1 | . . . 1 Recycler 4 | 1 . 1 2 Mechanic 1 | . . . 1 Swarmer 10 | . . 6 4 Grunt 7 | . . 4 3 Sentry 3 | . . . 3 Best Kill Streak 9 | 4 . 9 6 Combat Bots Only 5 | . . 5 4 Max Kills in Single Turn 3 | 1 . 3 2 Gunslinging . | . . . . Exploded 2 | . . 2 . Melee 1 | . . . 1 Uniques/NPCs Destroyed . | . . . . Combat | -11 -10 -10 -9 -------- Run | Yrd Mat Min Mat Hostile Shots Fired 77 | . . 22 55 Missed 17 | . . 6 11 Hits 60 | . . 16 44 Projectile 60 | . . 16 44 Critical Strikes 3 | . . 1 2 Damage Taken 814 | . . 324 490 Core 146 | . . 62 84 Absorbed by Shields . | . . . . Core Remaining (%) 87 | 100 . 75 . Volleys Fired 63 | 19 . 18 26 Largest 4 | 2 . 2 4 Hottest 147 | 70 . 60 147 Shots Fired 156 | 38 . 31 87 Gun 90 | 38 . . 52 Cannon 35 | . . . 35 Launcher 31 | . . 31 . Special . | . . . . Kinetic 80 | 19 . . 61 Thermal 45 | 19 . . 26 Explosive 31 | . . 31 . Electromagnetic . | . . . . Robot Hit Streak 15 | 11 . 4 15 Robot Miss Streak 7 | 2 . 7 5 Penetration Max . | . . . . Secondary Targets . | . . . . Shots Hit Robots 78 | 23 . 6 49 Core Hits 53 | 9 . 23 21 Critical Kills 1 | 1 . . . Critical Parts Destroyed . | . . . . Critical Strikes 4 | 4 . . . Burn 3 | 3 . . . Destroy 1 | 1 . . . Melee Attacks 1 | . . . 1 Impact . | . . . . Slashing . | . . . . Piercing . | . . . . Sneak Attacks 1 | . . . 1 Combat Hostiles . | . . . . Follow-up Attacks . | . . . . Damage Inflicted 1990 | 291 . 801 898 Guns 776 | 291 . . 485 Cannons 397 | . . . 397 Explosions 796 | . . 796 . Melee . | . . . . Ramming 21 | . . 5 16 Kinetic 635 | 116 . . 519 Thermal 538 | 175 . . 363 Explosive 796 | . . 796 . Electromagnetic . | . . . . Impact . | . . . . Slashing . | . . . . Piercing . | . . . . Highest Corruption . | . . . . Average Corruption . | . . . . Corruption Purged . | . . . . Corruption Blocked . | . . . . Overload Shots . | . . . . Overflow Damage 50 | . . 47 3 Projectiles 3 | . . . 3 Explosions 47 | . . 47 . Melee . | . . . . Knockbacks . | . . . . Impact . | . . . . Kinetic . | . . . . Secondary . | . . . . Self-Inflicted Damage 147 | . . 147 . Shots 7 | . . 7 . Rammed 5 | . . . 5 Targets Rammed 6 | . . 1 5 Kicked 1 | . . 1 . Crushed . | . . . . Highest Temperature 460 | 36 . 26 460 Average Temperature 112 | 14 . 13 172 Received Heat Transfer 273 | . . 81 192 Effects 4 | . . . 4 Shutdowns 1 | . . . 1 Interference 3 | . . . 3 Siege Activations . | . . . . Martial Activations . | . . . . Shielding Activations . | . . . . Robots Disrupted . | . . . . Combat Hostiles . | . . . . Robots Corrupted . | . . . . Combat Hostiles . | . . . . Parts Fried . | . . . . Impact Corruptions . | . . . . Robots Melted . | . . . . Combat Hostiles . | . . . . Parts Melted 3 | 3 . . . Heat Transferred 1420 | 740 . . 680 Parts Sabotaged . | . . . . Parts Stolen . | . . . . Parts Stripped . | . . . . Power Chain Reactions . | . . . . Alert | -11 -10 -10 -9 ------- Run | Yrd Mat Min Mat Maximum Alert Level 1 | . . 1 . Low Security (%) 91 | 100 100 81 100 Level 1 8 | . . 18 . Level 2 . | . . . . Level 3 . | . . . . Level 4 . | . . . . Level 5 . | . . . . High Security . | . . . . Max Security . | . . . . Peak Influence 271 | 15 . 271 187 Initial 103 | . . . 103 Average 57 | 1 . 75 66 Influence Increases 763 | 45 . 438 280 Destroy 0b10 Robot/C 400 | . . 200 200 Destroy 0b10 Robot/NC 90 | 45 . 25 20 Destroy Leader 92 | . . 40 52 Successful Hack 6 | . . . 6 Disable Machine 45 | . . 45 . Destroy Structure 130 | . . 128 2 Influence Decreases 608 | 45 . 173 390 Entered New Map 162 | . . . 162 Time Decay 423 | 45 . 153 225 Lost Part 23 | . . 20 3 Squads Dispatched 2 | . 1 . 1 Investigation 1 | . 1 . . Extermination . | . . . . Reinforcement 1 | . . . 1 Assault . | . . . . Garrison . | . . . . Intercept . | . . . . Searches Triggered . | . . . . Construction Impeded . | . . . . Haulers Reinforced . | . . . . Active Scanning Responses . | . . . . Cargo Convoy Interrupts . | . . . . Stealth | -11 -10 -10 -9 --------- Run | Yrd Mat Min Mat Distress Signals 1 | . . . 1 Communications Jammed . | . . . . Distress Signals . | . . . . Times Spotted 22 | . . 9 13 Peak Tracking Total 4 | . 1 3 4 Tactical Retreats . | . . . . Traps | -11 -10 -10 -9 ------- Run | Yrd Mat Min Mat Traps Triggered 3 | . 2 . 1 Indirectly . | . . . . Trap Hack Attempts 1 | . . . 1 Triggered . | . . . . Disarmed . | . . . . Reprogrammed . | . . . . Reused . | . . . . Traps Extracted . | . . . . Installed . | . . . . Triggered . | . . . . Machines | -11 -10 -10 -9 ---------- Run | Yrd Mat Min Mat Machines Disabled 3 | . . 3 . Max in Single Turn 2 | . . 2 . Machines Repaired . | . . . . Machines Dismantled . | . . . . Machines Sabotaged . | . . . . Overloaded Fab Kills . | . . . . Hacking | -11 -10 -10 -9 --------- Run | Yrd Mat Min Mat Machines Accessed 4 | . 1 . 3 Terminals 3 | . 1 . 2 Fabricators . | . . . . Repair Stations . | . . . . Recycling Units . | . . . . Scanalyzers 1 | . . . 1 Garrison Access . | . . . . Total Hacks 8 | . 2 . 6 Successful 7 | . 1 . 6 Failed 1 | . 1 . . Catastrophic . | . . . . Database Lockouts . | . . . . Manual . | . . . . Terminals 5 | . 2 . 3 Fabricators . | . . . . Repair Stations . | . . . . Recycling Units . | . . . . Scanalyzers 3 | . . . 3 Garrison Access . | . . . . Terminal Hacks 4 | . 1 . 3 Prototype ID Bank 1 | . . . 1 Alert Level 1 | . . . 1 Dispatch Records 1 | . . . 1 Hauler Manifests 1 | . 1 . . Fabricator Hacks . | . . . . Repair Station Hacks . | . . . . Recycling Unit Hacks . | . . . . Scanalyzer 3 | . . . 3 Insert Component 1 | . . . 1 Analyze 1 | . . . 1 Retrieve Study 1 | . . . 1 Garrison Access Hacks . | . . . . Unauthorized Hacks . | . . . . Terminals . | . . . . Fabricators . | . . . . Repair Stations . | . . . . Recycling Units . | . . . . Scanalyzers . | . . . . Garrison Access . | . . . . Data Cores Recovered . | . . . . Used . | . . . . Hacking Detections 4 | . 1 . 3 Full Trace Events . | . . . . Feedback Events . | . . . . Feedback Blocked . | . . . . Robot Schematics Acquired . | . . . . Robots Built . | . . . . Authchips . | . . . . Time . | . . . . Total Robot Build Rating . | . . . . Part Schematics Acquired 1 | . . . 1 Parts Built . | . . . . Authchips . | . . . . Time . | . . . . Total Part Build Rating . | . . . . Part Studies Acquired 1 | . . . 1 Parts Repaired . | . . . . Time . | . . . . Parts Recycled . | . . . . Recycled Matter . | . . . . Retrieved Matter . | . . . . Retrieved Components . | . . . . Parts Scanalyzed 1 | . . . 1 Part Schematics Acquired 1 | . . . 1 Parts Damaged . | . . . . Bothacking | -11 -10 -10 -9 ------------ Run | Yrd Mat Min Mat Used RIF Installer . | . . . . Robots Hacked 1 | . . . 1 Non-combat 1 | . . . 1 Combat . | . . . . Robot Hacks Applied 1 | . . . 1 parse_system 1 | . . . 1 Relay Couplers Released . | . . . . Fabnet Peak Effective % . | . . . . Robots Rewired . | . . . . Allies Hacked . | . . . . Hacks Repelled . | . . . . Allies | -11 -10 -10 -9 -------- Run | Yrd Mat Min Mat Total Allies . | . . . . Largest Group . | . . . . Highest-Rated Group . | . . . . Highest-Rated Ally . | . . . . Total Orders . | . . . . Ally Attacks . | . . . . Total Damage . | . . . . Kills . | . . . . Allies Corrupted . | . . . . Allies Melted . | . . . . Intel | -11 -10 -10 -9 ------- Run | Yrd Mat Min Mat Active Infowar (turns) 1549 | 223 79 850 397 Terrain 1124 | 223 79 822 . Seismic 1406 | 80 79 850 397 Robot Analysis Total . | . . . . Derelict Logs Recovered 1 | . . 1 . Drone Launches . | . . . . Drone Recoveries . | . . . . Exploration | -11 -10 -10 -9 ------------- Run | Yrd Mat Min Mat Turns Passed 1782 | 292 79 850 561 Spaces Moved 947 | 189 66 426 266 Core 4 | 4 . . . Treads 197 | . . . 197 Legs 746 | 185 66 426 69 Wheels . | . . . . Hover . | . . . . Flight . | . . . . Fastest Speed 50 | 50 120 120 120 Average Speed 158 | 118 120 185 153 Slowest Speed 190 | 120 120 190 190 Overloaded Moves . | . . . . Propulsion Burnouts . | . . . . Robots Hopped . | . . . . Potential Cave-ins . | . . . . Cave-ins Triggered . | . . . . Exploration Rate (%) 29 | 8 15 77 18 Regions Visited 3 Branch Regions 1 Pre-discovered Areas . | . . . . Known Exits Taken . | . . . . Unknown Exits Taken 3 | 1 1 1 . Scrap Searched 1 | . . 1 . Spaces Dug 28 | . . 28 . Terrain Destroyed 203 | . . 202 1 Melee . | . . . . Projectile 1 | . . . 1 AOE 202 | . . 202 . Terrain Rammed . | . . . . Walls Destroyed . | . . . . Machines Disabled . | . . . . Actions | -11 -10 -10 -9 --------- Run | Yrd Mat Min Mat Total 1083 | 215 66 450 352 Wait 24 | . . . 24 Move 944 | 188 65 425 266 Hop . | . . . . Pick Up 10 | 1 1 2 6 Fast Attach 16 | 7 . 1 8 Attach 5 | . . 1 4 Detach 1 | . . . 1 Swap 7 | . . 2 5 Drop 5 | . . . 5 Fire 63 | 19 . 18 26 Melee 1 | . . . 1 Ram . | . . . . Kick 1 | . . 1 . Crush 5 | . . . 5 Escape Stasis . | . . . . Rewire . | . . . . Trap 1 | . . . 1 Miscellaneous . | . . . . Route ------- -11/Scrapyard -10/Materials -10/Mines -9/Materials History --------- Turn | Location | Event 6 | -11/Scrapyard | Discovered new exit (range 15) 293 | -11/Scrapyard | Entered Materials 313 | -10/Materials | Build established: Mutant 354 | -10/Materials | Discovered new exit (range 15) 372 | -10/Materials | Entered Mines 378 | -10/Mines | YI-UF0 nonchalantly dropped a Grenade Launcher on the ground 423 | -10/Mines | Learned Materials garrison access intel 1188 | -10/Mines | Discovered new exit (range 10) 1222 | -10/Mines | Entered Materials 1222 | -9/Materials | Evolved 2 slots: Weapon x2 1742 | -9/Materials | Build established: Gunner 1783 | -9/Materials | Self-destructed Last Messages --------------- 01670_ Extracted 6 energy. 01672_ Acquired 73 matter. 01673_ Extracted 6 energy. 01675_ Acquired 5 matter. 01676_ Extracted 6 energy. 01684_ Acquired 14 matter. 01686_ Acquired 12 matter. 01690_ Acquired Lgt. Assault Rifle. 01693_ Acquired 4 matter. 01697_ G-34 Mercenary destroyed. 01697_ M-13 Machinist destroyed. 01710_ G-34 Mercenary destroyed. 01714_ Acquired 14 matter. 01715_ Acquired 65 matter. 01716_ R-06 Scavenger collects Wheel. 01718_ Acquired 11 matter. 01720_ R-06 Scavenger collects Recalibrator. 01724_ R-06 Scavenger collects Aluminum Leg. 01727_ R-06 Scavenger collects Sml. Laser. 01773_ M-13 Machinist repairs O-16 Technician Hover Unit. Map ----- +----------------------------------------------------+ | ?????????????????????????????????????????????????? | | ?????????????????????????????????????????????????? | | ?????????????????????????????????????????????????? | | ?????????????????????????????????????????????????? | | ?????????????????????????????????????????????????? | | ?????????????????????????????????????????????? | | ?????????????????????????????????????????????? | | ???????????????????????# ?? ?????????????????? | | ????????????????????#### ?? ?????????????????? | | ????????????????????+ ?# ?????????????????? | | ????????????????????# C##+#?????????????????# | | ????????????????????# #?????????????????# | | ????????????????????# m#?????????????????# | | ????????????????????# r #?????????????????# | | ????????????????????? o#####?????????????# | | ?????????????????????? ??????????????+ | | ???????????????????????# #??????????????# %= | | ???????????????????????# #?##############% | | ???????????????????????# #?# """ # % | | ???????????????????????# #?# """ "T" # =* | | ???????????????????????# ### """ + | | ???????????????????????# + """ ] # | | ???????????????????????# ###### """ # | | ???????????????????????# #????# """ ## ! | | ???????????????????????# #????# ## == | | ???????????????????????# @ #????###### ####### | | ???????????????????????# #????##############= = | | ???????????????????????# ?? = | | ?????????????????????? !! | | ????????????????????? ^ ! | | ???????????????????? ! | | ???????????????????########+########## ! | | ?????????????????????????????????????# | | ?????????????????????????????????????# ##### | | ?????????????????????????????????????# ????# | | ?????????????????????????????????????# ????# | | ?????????????????????????????????????# ????# | | ?????????????????????????????????????# ?????# | | ???????????????????????????????????? ?????# | | ???????????????????????????????????#####+###?????# | | ?????????????????????????????????????????????????# | | ?????????????????????????????????????????????????# | | ?????????????????????????????????????????????????# | | ?????????????????????????????????????????????????# | | ????????????????????????????????????????????????## | | ????????????????????????????????????????????????# | | ????????????????????????????????????????????????## | | ?????????????????????????????????????????????????# | | ?????????????????????????????????????????????????# | | ?????????????????????????????????????????????????? | +----------------------------------------------------+ Best States ------------- Heat Dissipation 28 Energy Generation 14 Energy Capacity 280 Matter Stores 300 Matter Capacity 300 Sight Range 16 Terrain Scan Range 16 Terrain Scan Density 85 Evasion (%) 55 Recoil Reduction 2 Item Schematics ----------------- Adv. Treads | -9/Materials | Scanalyzed Robot Schematics ------------------ None Fabricated ------------ Nothing Repaired ---------- Nothing Studied --------- Imp. Light Cannon | -9/Materials | Hacked Alien Tech Used ----------------- None Achievements -------------- Fist Fight Challenges ------------ None Game ------ Seed HardenedMachineTearclaws Manual? 0 Play Time 00:11:22 Cumulative 8.7 hours Start 2025.10.23 @ 21:02:34 End 2025.10.24 @ 21:11:49 Sessions 3 Manual Loads 0 Difficulty Rogue Special Mode None Game No. 22 Rogue 22 Adventurer 0 Explorer 0 Win Type - Total 0 Types 0/0/0/0/0/0/0/0/0/0 Lore% 3 Gallery% 9 Achievement% 8 Wizard Run 0 Options --------- Layout 0 ASCII 0 Keyboard 1 Movement Arrows Keybinds 0 Fullscreen 1 Font 24/Smallcaps Map View 76x50 Zoom Use 72% Tactical HUD 1 Map Filters NONE Filters NONE Steam 1 RUN: 345db614-35ce-4cb5-912d-b210ed77bde2